Cogmind - Beta 9.6 @@@ ROGUE MODE // 2020.06.03 @ 20:31:07 Player: ody Result: Destroyed by G-47 Trooper with Particle Gun Performance ------------- Evolutions (2) 1000 Regions Visited (4) 800 Robots Destroyed (60) 300 Value Destroyed (1531) 1531 Prototype IDs (2) 40 Alien Tech Used (0) 0 Bonus (-20) -20 TOTAL SCORE: 3651 Bonus ------- High Alert Combat Kills 8 Follower Combat Kills 115 Friendly Fire -143 Cogmind --------- Core Integrity 0/550 Matter 300/300 Energy 100/100 System Corruption 9% Temperature Cool (9) Movement Walking (120) Location -8/Materials Parts ------- > --- POWER (2) -------- (None) > --- PROPULSION (4) --- Improved Aluminum Leg > --- UTILITY (3) ------ (None) > --- WEAPON (2) ------- (None) > --- INVENTORY (4) ---- (None) Peak State ------------ > --- POWER ------------ Improved Ion Engine Improved Ion Engine > --- PROPULSION ------- Compact Wheel Compact Wheel > --- UTILITY ---------- Large Battery Medium Matter Pod Drone Bay > --- WEAPON ----------- Spread Laser Heavy Assault Rifle > --- INVENTORY -------- Hardened Light Armor Plating Beam Rifle Autogun [Rating: 17] Favorites ----------- Power Ion Engine Engine Ion Engine Propulsion Light Treads Treads Light Treads Leg Aluminum Leg Wheel Compact Wheel Hover Unit Hover Unit Flight Unit Flight Unit Utility Medium Matter Pod Device Drone Bay Storage Medium Matter Pod Protection Hardened Light Armor Plating Weapon Light Assault Rifle Energy Gun Small Laser Energy Cannon Particle Cannon Ballistic Gun Light Assault Rifle Ballistic Cannon Light Cannon Launcher Grenade Launcher Build | -11 -10 -9 -9 -8 ------- Run | Scr Mat Mat Sto Mat Slots Evolved 4 | . . 2 . 2 Power 1 | . . 1 . . Propulsion 2 | . . . . 2 Utility 1 | . . 1 . . Weapon . | . . . . . Parts Attached 66 | 7 9 17 25 8 Power 14 | 1 2 3 8 . Engine 14 | 1 2 3 8 . Core . | . . . . . Reactor . | . . . . . Propulsion 22 | 2 . 7 7 6 Treads 4 | 2 . 2 . . Leg 9 | . . . 3 6 Wheel 3 | . . . 3 . Hover 2 | . . 1 1 . Flight 4 | . . 4 . . Utility 8 | 1 3 1 3 . Device 1 | . . . 1 . Storage 5 | 1 3 . 1 . Processor . | . . . . . Hackware . | . . . . . Protection 2 | . . 1 1 . Artifact . | . . . . . Weapon 22 | 3 4 6 7 2 Energy Gun 10 | 2 . 2 4 2 Energy Cannon 1 | . . 1 . . Ballistic Gun 9 | 1 2 3 3 . Ballistic Cannon 1 | . 1 . . . Launcher 1 | . 1 . . . Special Weapon . | . . . . . Impact Weapon . | . . . . . Slashing Weapon . | . . . . . Piercing Weapon . | . . . . . Special Melee Weapon . | . . . . . Unidentified Prototypes . | . . . . . Parts Lost 38 | . 7 9 10 12 Power 9 | . 2 2 4 1 Propulsion 9 | . 1 2 2 4 Utility 3 | . . . . 3 Weapon 17 | . 4 5 4 4 Highest Loss Streak 12 | . 3 4 3 12 Average Slot Usage (%) 83 | . 80 78 92 55 Engine 16 | . 12 20 20 5 Treads 9 | . 22 3 4 . Leg 1 | . . . . 19 Wheel 5 | . . . 14 . Flight 2 | . . 11 . . Storage 21 | . 20 22 22 13 Protection 4 | . . 1 8 5 Energy Gun 6 | . 3 6 7 6 Energy Cannon 2 | . . 2 3 . Ballistic Gun 9 | . 11 8 9 5 Ballistic Cannon 1 | . 5 . . . Naked Turns . | . . . . . Heaviest Build 29 | 13 14 23 29 19 Greatest Support 52 | 40 40 40 40 52 Greatest Overweight (x) 6 | 4 . 6 6 2 Average Overweight (x) . | 1 . 1 . . Largest Inventory Capacity 6 | 6 6 4 4 4 Average Capacity 4 | 5 5 4 4 4 Most Carried 6 | 4 6 4 4 4 Average Carried 3 | 2 3 1 3 2 Final Capacity 6 | 6 4 4 4 4 Final Carried 4 | 2 4 4 4 . Class Distribution -------------------- 49% | Scavenger-Mutant 44% | Mutant 5% | Commander-Mutant Dominant Class ---------------- Mutant | -10/Materials Scavenger-Mutant | -9/Materials Scavenger-Mutant | -9/Storage Scavenger-Mutant | -8/Materials Resources | -11 -10 -9 -9 -8 ----------- Run | Scr Mat Mat Sto Mat Matter Collected 1361 | 105 459 158 551 88 Remotely . | . . . . . Salvage Created 1977 | . 589 247 1053 88 Parts 118 | . 29 22 63 4 Haulers Intercepted . | . . . . . Recyclers Shooed 2 | . . . 2 . Parts Field Recycled . | . . . . . Retrieved Matter . | . . . . . Parts Self-Destructed . | . . . . . Prevented . | . . . . . Kills | -11 -10 -9 -9 -8 ------- Run | Scr Mat Mat Sto Mat Combat Hostiles Destroyed 53 | . 17 9 24 3 Guns 37 | . 10 5 19 3 Cannons 12 | . 6 1 5 . AOE 3 | . . 3 . . Classes Destroyed 6 | . 2 2 2 . Builder 1 | . . . 1 . Recycler 2 | . . . 2 . Watcher 3 | . . 1 2 . Swarmer 21 | . 6 4 9 2 Grunt 24 | . 11 3 10 . Sentry 9 | . . 2 6 1 Best Kill Streak 10 | . 3 5 10 2 Combat Bots Only 8 | . 3 5 8 2 Max Kills in Single Turn 2 | . 1 2 2 1 Gunslinging . | . . . . . Exploded 2 | . . 2 . . Melee . | . . . . . Uniques/NPCs Destroyed . | . . . . . Combat | -11 -10 -9 -9 -8 -------- Run | Scr Mat Mat Sto Mat Damage Taken 4278 | . 880 736 1170 1492 Core 1073 | . 173 157 180 563 Absorbed by Shields . | . . . . . Core Remaining (%) 48 | 100 30 . 15 . Volleys Fired 224 | . 71 39 92 22 Largest 2 | . 2 2 2 2 Hottest 121 | . 60 85 121 63 Shots Fired 353 | . 114 60 144 35 Gun 307 | . 99 56 117 35 Cannon 43 | . 15 1 27 . Launcher 3 | . . 3 . . Special . | . . . . . Kinetic 217 | . 91 34 73 19 Thermal 110 | . . 23 71 16 Explosive 3 | . . 3 . . Electromagnetic 23 | . 23 . . . Robot Hit Streak 14 | . 14 4 8 5 Robot Miss Streak 5 | . 4 5 4 5 Penetration Max . | . . . . . Secondary Targets 4 | . 2 2 . . Max Gunslinging Chain 1 | . 1 1 . . Shots Hit Robots 221 | . 79 32 90 20 Core Hits 110 | . 29 15 51 15 Critical Hits 1 | . . 1 . . Critical Kills . | . . . . . Critical Parts Destroyed 1 | . . 1 . . Melee Attacks . | . . . . . Impact . | . . . . . Slashing . | . . . . . Piercing . | . . . . . Sneak Attacks . | . . . . . Combat Hostiles . | . . . . . Follow-up Attacks . | . . . . . Damage Inflicted 3315 | . 894 660 1503 258 Guns 2380 | . 754 315 1071 240 Cannons 592 | . 140 20 432 . Explosions 325 | . . 325 . . Melee . | . . . . . Ramming 18 | . . . . 18 Kinetic 1588 | . 604 192 644 148 Thermal 1094 | . . 143 859 92 Explosive 325 | . . 325 . . Electromagnetic 290 | . 290 . . . Impact . | . . . . . Slashing . | . . . . . Piercing . | . . . . . Highest Corruption 9 | . . . . 9 Average Corruption 6 | . . . . 6 Corruption Purged . | . . . . . Effects 4 | . . . . 4 Message Errors 1 | . . . . 1 Heat Flow Errors 1 | . . . . 1 Parts Rejected 1 | . . . . 1 Data Loss (minor) 1 | . . . . 1 Overload Shots . | . . . . . Overflow Damage 2 | . . . 2 . Projectiles 2 | . . . 2 . Explosions . | . . . . . Melee . | . . . . . Knockbacks 1 | . 1 . . . Impact . | . . . . . Kinetic 1 | . 1 . . . Secondary . | . . . . . Self-Inflicted Damage 44 | . . 40 . 4 Shots 3 | . . 3 . . Rammed 9 | . . . . 9 Targets Rammed 13 | . . . . 13 Kicked 4 | . . . . 4 Crushed . | . . . . . Highest Temperature 380 | . 117 162 380 195 Average Temperature 93 | . 39 64 123 40 Received Heat Transfer 1632 | . 402 150 351 729 Effects 4 | . . . 4 . Shutdowns 1 | . . . 1 . Energy Bleed 2 | . . . 2 . Matter Decay 1 | . . . 1 . Siege Activations . | . . . . . Robots Corrupted 1 | . 1 . . . Combat Hostiles 1 | . 1 . . . Parts Fried 2 | . 2 . . . Impact Corruptions . | . . . . . Robots Melted . | . . . . . Combat Hostiles . | . . . . . Parts Melted 1 | . . . 1 . Heat Transferred 2186 | . . 370 1604 212 Parts Sabotaged . | . . . . . Parts Stolen . | . . . . . Parts Stripped . | . . . . . Power Chain Reactions . | . . . . . Missiles Intercepted . | . . . . . Alert | -11 -10 -9 -9 -8 ------- Run | Scr Mat Mat Sto Mat Peak Influence 572 | . 247 277 572 256 Average Influence 204 | . 136 193 278 203 Maximum Alert Level 2 | . 1 1 2 1 Low Security (%) 52 | 100 86 30 36 41 Level 1 31 | . 13 69 24 58 Level 2 15 | . . . 38 . Level 3 . | . . . . . Level 4 . | . . . . . Level 5 . | . . . . . High Security . | . . . . . Max Security . | . . . . . Squads Dispatched 16 | . 4 1 9 2 Investigation 8 | . 3 . 4 1 Extermination . | . . . . . Reinforcement 5 | . 1 1 2 1 Assault . | . . . . . Garrison 3 | . . . 3 . Intercept . | . . . . . Construction Impeded . | . . . . . Haulers Reinforced . | . . . . . Stealth | -11 -10 -9 -9 -8 --------- Run | Scr Mat Mat Sto Mat Distress Signals 6 | . 1 . 3 2 Communications Jammed . | . . . . . Distress Signals . | . . . . . Times Spotted 87 | . 25 15 34 13 Peak Tracking Total 8 | . 5 7 3 8 Tactical Retreats 2 | . . . 1 1 Traps | -11 -10 -9 -9 -8 ------- Run | Scr Mat Mat Sto Mat Traps Triggered 3 | . 1 . 2 . Indirectly . | . . . . . Trap Hack Attempts . | . . . . . Triggered . | . . . . . Disarmed . | . . . . . Reprogrammed . | . . . . . Reused . | . . . . . Traps Extracted . | . . . . . Installed . | . . . . . Triggered . | . . . . . Machines | -11 -10 -9 -9 -8 ---------- Run | Scr Mat Mat Sto Mat Machines Disabled 3 | . 1 1 1 . Max in Single Turn 1 | . 1 1 1 . Machines Sabotaged . | . . . . . Garrisons Compromised . | . . . . . Overloaded Fab Kills . | . . . . . Fab Network Shutdowns . | . . . . . Hacking | -11 -10 -9 -9 -8 --------- Run | Scr Mat Mat Sto Mat Machines Accessed 12 | . 3 1 7 1 Terminals 10 | . 2 1 6 1 Fabricators . | . . . . . Repair Stations . | . . . . . Recycling Units 2 | . 1 . 1 . Scanalyzers . | . . . . . Garrison Access . | . . . . . Total Hacks 51 | . 12 3 31 5 Successful 30 | . 8 3 16 3 Failed 21 | . 4 . 15 2 Catastrophic 3 | . . . 3 . Database Lockouts . | . . . . . Manual . | . . . . . Terminals 41 | . 6 3 27 5 Fabricators . | . . . . . Repair Stations . | . . . . . Recycling Units 10 | . 6 . 4 . Scanalyzers . | . . . . . Garrison Access . | . . . . . Terminal Hacks 24 | . 5 3 13 3 Record 15 | . 4 . 8 3 Part Schematic 3 | . . . 3 . Prototype ID Bank 1 | . . 1 . . Open Door 1 | . . . 1 . Alert Level 2 | . . 2 . . Locate Traps 1 | . . . 1 . Hauler Manifests 1 | . 1 . . . Fabricator Hacks . | . . . . . Repair Station Hacks . | . . . . . Recycling Unit Hacks 6 | . 3 . 3 . Report Inventory 1 | . . . 1 . Retrieve Matter 5 | . 3 . 2 . Scanalyzer . | . . . . . Garrison Access Hacks . | . . . . . Unauthorized Hacks . | . . . . . Terminals . | . . . . . Fabricators . | . . . . . Repair Stations . | . . . . . Recycling Units . | . . . . . Scanalyzers . | . . . . . Garrison Access . | . . . . . Data Cores Recovered . | . . . . . Used . | . . . . . Hacking Detections 10 | . 2 1 6 1 Full Trace Events 9 | . 2 . 6 1 Feedback Events . | . . . . . Feedback Blocked . | . . . . . Robot Schematics Acquired . | . . . . . Robots Built . | . . . . . Matter . | . . . . . Time . | . . . . . Total Robot Build Rating . | . . . . . Part Schematics Acquired 3 | . . . 3 . Parts Built . | . . . . . Matter . | . . . . . Time . | . . . . . Total Part Build Rating . | . . . . . Parts Repaired . | . . . . . Time . | . . . . . Parts Recycled . | . . . . . Recycled Matter . | . . . . . Retrieved Matter 219 | . . . 219 . Retrieved Components . | . . . . . Parts Scanalyzed . | . . . . . Part Schematics Acquired . | . . . . . Parts Damaged . | . . . . . Bothacking | -11 -10 -9 -9 -8 ------------ Run | Scr Mat Mat Sto Mat Used RIF Installer . | . . . . . Robots Hacked . | . . . . . Non-combat . | . . . . . Combat . | . . . . . Robot Hacks Applied . | . . . . . Relay Couplers Released . | . . . . . Robots Rewired . | . . . . . Allies Hacked . | . . . . . Hacks Repelled . | . . . . . Allies | -11 -10 -9 -9 -8 -------- Run | Scr Mat Mat Sto Mat Total Allies 10 | . . . 10 . Largest Group 10 | . . . 10 4 Highest-Rated Group 88 | . . . 88 27 Highest-Rated Ally 16 | . . . 16 8 Total Orders . | . . . . . Ally Attacks 22 | . . . 21 1 Total Damage 211 | . . . 211 . Kills 5 | . . . 5 . Allies Corrupted . | . . . . . Allies Melted . | . . . . . Intel | -11 -10 -9 -9 -8 ------- Run | Scr Mat Mat Sto Mat Robot Analysis Total . | . . . . . Derelict Logs Recovered . | . . . . . Drone Launches 2 | . . . 2 . Drone Recoveries . | . . . . . Exploration | -11 -10 -9 -9 -8 ------------- Run | Scr Mat Mat Sto Mat Turns Passed 2438 | 67 747 497 965 162 Spaces Moved 1249 | 37 341 179 625 67 Core 51 | 29 . 15 2 5 Treads 500 | 8 341 49 102 . Legs 93 | . . . 31 62 Wheels 490 | . . . 490 . Hover 1 | . . 1 . . Flight 114 | . . 114 . . Fastest Speed 50 | 50 160 117 90 50 Average Speed 138 | 146 160 202 109 119 Slowest Speed 350 | 250 160 350 350 150 Overloaded Moves . | . . . . . Propulsion Burnouts . | . . . . . Robots Hopped . | . . . . . Cave-ins Triggered . | . . . . . Exploration Rate (%) 33 | 3 58 22 73 9 Regions Visited 4 Branch Regions 1 Pre-discovered Areas . | . . . . . Known Exits Taken . | . . . . . Unknown Exits Taken 4 | 1 1 1 1 . Scrap Searched . | . . . . . Spaces Dug . | . . . . . Terrain Destroyed 13 | . . 13 . . Melee . | . . . . . Projectile . | . . . . . AOE 13 | . . 13 . . Actions | -11 -10 -9 -9 -8 --------- Run | Scr Mat Mat Sto Mat Total 1627 | 48 437 259 768 115 Wait 10 | . 7 . . 3 Move 1245 | 36 340 178 624 67 Hop . | . . . . . Pick Up 43 | 5 8 18 12 . Fast Attach 21 | 3 2 1 13 2 Attach 40 | 3 6 15 10 6 Detach 2 | . . . . 2 Swap 5 | 1 1 1 2 . Drop 24 | . 2 7 15 . Fire 224 | . 71 39 92 22 Melee . | . . . . . Ram 1 | . . . . 1 Kick 12 | . . . . 12 Crush . | . . . . . Escape Stasis . | . . . . . Rewire . | . . . . . Trap . | . . . . . Miscellaneous . | . . . . . Route ------- -11/Scrapyard -10/Materials (discovered 2 exits: *Mat / [*Min]) -9/Materials -9/Storage -8/Materials History --------- Turn | Location | Event 8 | -11/Scrapyard | Discovered new exit (range 15) 68 | -11/Scrapyard | Entered Materials 316 | -10/Materials | Build established: Mutant 428 | -10/Materials | Discovered new exit (range 12) 528 | -10/Materials | Core integrity fell below 50% 572 | -10/Materials | Lost 3 parts (1n2w) 702 | -10/Materials | Discovered new exit (range 11) 815 | -10/Materials | Entered another Materials area 815 | -9/Materials | Evolved 2 slots: Power x1, Utility x1 955 | -9/Materials | Lost 3 parts (1p2w) 1161 | -9/Materials | Discovered new exit (range 15) 1216 | -9/Materials | Lost 4 parts (1p1n2w) 1312 | -9/Materials | Entered Storage 1533 | -9/Storage | Build established: Scavenger-Mutant 1672 | -9/Storage | Core integrity fell below 50% 1784 | -9/Storage | Destroyed 8 combat bots 1819 | -9/Storage | Garrison activated, responded to threat 1880 | -9/Storage | Lost 3 parts (1p2w) 1969 | -9/Storage | Assisted by bots powering up and referring to "LRC-V3" 2095 | -9/Storage | Core integrity fell below 20% 2254 | -9/Storage | Discovered new exit (range 16) 2277 | -9/Storage | Entered Materials 2277 | -8/Materials | Accompanied by 4 allies 2277 | -8/Materials | Evolved 2 slots: Propulsion x2 2393 | -8/Materials | Core integrity fell below 50% 2419 | -8/Materials | Core integrity fell below 20% 2439 | -8/Materials | Destroyed by G-47 Trooper with Particle Gun Last Messages --------------- Beam Rifle destroyed. Med. Matter Pod destroyed. Acquired Particle Gun. Lrg. Battery destroyed. System corrupted by crushing effect (+4). Knocked back. Slammed into G-47 Trooper. Particle Gun destroyed. 4NNAETCAEQEUWW1&SMALJTOAQE, Imp. Aluminum Leg destroyed. Kicked G-47 Trooper out of the way. Slammed into G-47 Trooper. Kicked G-47 Trooper out of the way. System corrupted: Imp. Aluminum Leg rejected. Kicked G-47 Trooper out of the way. Slammed into G-47 Trooper. Imp. Aluminum Leg destroyed. Slammed into G-47 Trooper. Destabilizing: System corrupted (+1). Slammed into G-47 Trooper. Map ----- +----------------------------------------------------+ | ?????????????????????????????????????????????????? | | ?????????????????????????????????????????????????? | | ?????????????????????????????????????????????????? | | ?????????????????????????????????????????????????? | | ?????????????????????????????????????????????????? | | ?????????????????????????????????????????????????? | | ?????????????????????????????????????????????????? | | ?#########+#?????????????????????????????????????? | | ?# ! #???########??????????????????????????? | | ## """ #???# ???????????????????????????? | | #! "T" #???# ????????????????????????????? | | =# #???# ?????????????????????????????? | | # """ """ #???# #?????????????????????????????? | | [# """ """ #???# ########??????????????????????? | | # """ """ #???# ## #??????????????????????? | | ?# == #??## ## b #??????????????????????? | | ####/##########= # """ #??????????????????????? | | =% # """ #??????????????????????? | | * ! + """ #??????????????????????? | | #Y g g#??????????????????????? | | ####+######/### # """g#??????????????????????? | | ??"" "???# ### ## """%#??????????????????????? | | ?""" "???# #?# ## """%#??????????????????????? | | ?""" "???# #?# ## g%#??????????????????????? | | ???# #?# ## #??????????????????????? | | ? ???# #?# ## @#??????????????????????? | | ? ???# #?# ########??????????????????????? | | ?? ???# #?# #?????????????????????????????? | | ?? ???#####? ?????????????????????????????? | | ??####????????? ?????????????????????????????? | | ??????????????# ????????????????????????????? | | ??????????????# ????????????????????????????? | | ??????????????# #????????????????????????????? | | ??????????????#######????????????????????????????? | | ?????????????????????????????????????????????????? | | ?????????????????????????????????????????????????? | | ?????????????????????????????????????????????????? | | ?????????????????????????????????????????????????? | | ?????????????????????????????????????????????????? | | ?????????????????????????????????????????????????? | | ?????????????????????????????????????????????????? | | ?????????????????????????????????????????????????? | | ?????????????????????????????????????????????????? | | ?????????????????????????????????????????????????? | | ?????????????????????????????????????????????????? | | ?????????????????????????????????????????????????? | | ?????????????????????????????????????????????????? | | ?????????????????????????????????????????????????? | | ?????????????????????????????????????????????????? | | ?????????????????????????????????????????????????? | +----------------------------------------------------+ Best States ------------- Heat Dissipation 31 Energy Generation 19 Energy Capacity 730 Matter Stores 400 Matter Capacity 400 Sight Range 16 Terrain Scan Density 10 Armor Coverage 150 Evasion (%) 50 Recoil Reduction 2 Item Schematics ----------------- Plasma Cutter | -9/Storage | Hacked Nuclear Core | -9/Storage | Hacked Mni. Grenade Launcher | -9/Storage | Hacked Robot Schematics ------------------ None Fabricated ------------ Nothing Alien Tech Used ----------------- None Achievements -------------- Librarian Novice Programmer Shopping List Troublemaker Universal Adapter Challenges ------------ None Game ------ Seed MeleeMiniNegator Manual? 0 Play Time 00:34:36 Cumulative 5.4 hours Start 2020.06.02 @ 19:23:42 End 2020.06.03 @ 20:31:07 Sessions 3 Manual Loads 0 Difficulty Rogue Special Mode None Game No. 22 Rogue 22 Adventurer 0 Explorer 0 Win Type - Total 0 Types 0/0/0/0/0/0/0 Lore% 3 Gallery% 12 Achievement% 7 Wizard Run 0 Options --------- ASCII 0 Keyboard 0 Movement Mouse Keybinds 0 Fullscreen 1 Font 18/SmallcapsGlow Map View 76x50 Tactical HUD 0 Map Filters NONE Filters NONE Steam 1 RUN: 46b2f932-2f0b-4c7e-8547-9f6864b9b6c3